fUST/lending_fUST_20240906
["ID","MTS","AMOUNT","RATE_DAILY","PERIOD"]
[337340080,1725616266972,-500.0,0.00019799,2]
[337340081,1725616266982,-1171.32,0.00019799,2]
[337340082,1725616266991,-500.0,0.00019799,2]
[337340083,1725616267001,-589.26,0.00019799,2]
[337340084,1725616267011,-500.0,0.00019799,2]
[337340085,1725616267020,-500.0,0.00019799,2]
[337340086,1725616267030,-500.0,0.00019799,2]
[337340087,1725616267040,-500.0,0.00019799,2]
[337340088,1725616267049,-500.0,0.00019799,2]
[337340089,1725616267058,-500.0,0.00019799,2]
[337340090,1725616267068,-500.0,0.00019799,2]
[337340091,1725616267077,-500.0,0.00019799,2]
[337340092,1725616267087,-500.0,0.00019799,2]
[337340093,1725616267096,-564.83,0.00019799,2]
[337340094,1725616267106,-500.0,0.00019799,2]
[337340095,1725616267116,-500.0,0.00019799,2]
[337340096,1725616267126,-500.0,0.00019799,2]
[337340097,1725616267135,-500.0,0.00019799,2]
[337340098,1725616267144,-787.75,0.00019799,2]
[337340099,1725616267153,-500.0,0.00019799,2]
[337340100,1725616267164,-500.0,0.00019799,2]
[337340101,1725616267173,-500.0,0.00019799,2]
[337340102,1725616267183,-2435.34,0.00019799,2]
[337340103,1725616267192,-500.0,0.00019799,2]
[337340104,1725616267202,-500.0,0.00019799,2]
[337340105,1725616267212,-2131.22,0.00019799,2]
[337340106,1725616267222,-500.0,0.00019799,2]
[337340107,1725616267232,-500.0,0.00019799,2]
[337340108,1725616267242,-500.0,0.00019799,2]
[337340109,1725616267251,-550.40035792,0.00019799,2]
[337340110,1725616267260,-1500.45,0.00019799,2]
[337340111,1725616267270,-500.0,0.00019799,2]
[337340112,1725616267280,-500.0,0.00019799,2]
[337340113,1725616267289,-500.0,0.00019799,2]
[337340114,1725616267299,-500.0,0.00019799,2]
[337340115,1725616267308,-500.0,0.00019799,2]
[337340116,1725616267317,-500.0,0.00019799,2]
[337340117,1725616267327,-500.0,0.00019799,2]
[337340118,1725616267337,-500.0,0.00019799,2]
[337340119,1725616267347,-500.0,0.00019799,2]
[337340120,1725616267356,-500.0,0.00019799,2]
[337340121,1725616267365,-2079.22,0.00019799,2]
[337340122,1725616267374,-500.0,0.00019799,2]
[337340123,1725616267383,-540.78,0.00019799,2]
[337340124,1725616267393,-500.0,0.00019799,2]
[337340125,1725616267403,-510.19931738,0.00019799,2]
[337340126,1725616267412,-500.0,0.00019799,2]
[337340127,1725616267422,-500.0,0.00019799,2]
[337340128,1725616267432,-690.75,0.00019799,2]
[337340129,1725616267441,-500.0,0.00019799,2]
[337340130,1725616267452,-500.0,0.00019799,2]
[337340131,1725616267462,-500.0,0.00019799,2]
[337340132,1725616267472,-500.0,0.00019799,2]
[337340133,1725616267482,-500.0,0.00019799,2]
[337340134,1725616267491,-500.0,0.00019799,2]
[337340135,1725616267500,-500.0,0.00019799,2]
[337340136,1725616267509,-500.0,0.00019799,2]
[337340137,1725616267519,-500.0,0.00019799,2]
[337340138,1725616267529,-500.0,0.00019799,2]
[337340139,1725616267538,-500.0,0.00019799,2]
[337340140,1725616267548,-1083.74,0.00019799,2]
[337340141,1725616267559,-500.0,0.00019799,2]
[337340142,1725616267569,-578.35,0.00019799,2]
[337340143,1725616267579,-513.55637235,0.00019799,2]
[337340144,1725616267588,-500.0,0.00019799,2]
[337340145,1725616267598,-500.0,0.00019799,2]
[337340146,1725616267607,-500.0,0.00019799,2]
[337340147,1725616267616,-500.0,0.00019799,2]
[337340148,1725616267630,-500.0,0.00019799,2]
[337340149,1725616267640,-571.69,0.00019799,2]
[337340150,1725616267651,-500.0,0.00019799,2]
[337340151,1725616267660,-500.0,0.00019799,2]
[337340152,1725616267669,-500.0,0.00019799,2]
[337340153,1725616267679,-612.64,0.00019799,2]
[337340154,1725616267688,-500.0,0.00019799,2]
[337340155,1725616267697,-500.0,0.00019799,2]
[337340156,1725616267706,-500.0,0.00019799,2]
[337340157,1725616267715,-463.24895093,0.00019799,2]
[337340158,1725616267724,-500.0,0.00019799,2]
[337340159,1725616267733,-500.0,0.00019799,2]
[337340160,1725616267743,-756.69,0.00019799,2]
[337340161,1725616267752,-500.0,0.00019799,2]
[337340162,1725616267761,-500.0,0.00019799,2]
[337340163,1725616267771,-2258.46,0.00019799,2]
[337340164,1725616267780,-500.0,0.00019799,2]
[337340165,1725616267790,-500.0,0.00019799,2]
[337340166,1725616267800,-522.13,0.00019799,2]
[337340167,1725616267810,-539.36,0.00019799,2]
[337340168,1725616267821,-500.0,0.00019799,2]
[337340169,1725616267831,-500.0,0.00019799,2]
[337340170,1725616267840,-500.0,0.00019799,2]
[337340171,1725616267850,-500.0,0.00019799,2]
[337340172,1725616267859,-511.37546581,0.00019799,2]
[337340173,1725616267868,-500.0,0.00019799,2]
[337340174,1725616267878,-500.0,0.00019799,2]
[337340175,1725616267887,-500.0,0.00019799,2]
[337340176,1725616267897,-500.0,0.00019799,2]
[337340177,1725616267907,-500.0,0.00019799,2]
[337340178,1725616267917,-500.0,0.00019799,2]
[337340179,1725616267926,-500.0,0.00019799,2]
[337340180,1725616267936,-527.87163045,0.00019799,2]
[337340181,1725616267946,-500.0,0.00019799,2]
[337340182,1725616267956,-500.0,0.00019799,2]
[337340183,1725616267966,-500.0,0.00019799,2]
[337340184,1725616267976,-500.0,0.00019799,2]
[337340185,1725616267986,-500.0,0.00019799,2]
[337340186,1725616267996,-500.0,0.00019799,2]
[337340187,1725616268005,-500.0,0.00019799,2]
[337340188,1725616268015,-500.0,0.00019799,2]
[337340189,1725616268026,-500.0,0.00019799,2]
[337340190,1725616268036,-500.0,0.00019799,2]
[337340191,1725616268045,-500.0,0.00019799,2]
[337340192,1725616268055,-500.0,0.00019799,2]
[337340193,1725616268064,-500.0,0.00019799,2]
[337340194,1725616268074,-500.0,0.00019799,2]
[337340195,1725616268083,-2546.73,0.00019799,2]
[337340196,1725616268094,-500.0,0.00019799,2]
[337340197,1725616268103,-500.0,0.00019799,2]
[337340198,1725616268113,-500.0,0.00019799,2]
[337340199,1725616268123,-500.0,0.00019799,2]
[337340200,1725616268133,-500.0,0.00019799,2]
[337340201,1725616268144,-506.63831481,0.00019799,2]
[337340202,1725616268154,-500.0,0.00019799,2]
[337340203,1725616268163,-500.0,0.00019799,2]
[337340204,1725616268173,-941.1,0.00019799,2]
[337340205,1725616268182,-1678.16,0.00019799,2]
[337340206,1725616268192,-425.84394777,0.00019799,2]
[337340207,1725616268202,-500.0,0.00019799,2]
[337340208,1725616268211,-502.65877379,0.00019799,2]
[337340209,1725616268221,-500.0,0.00019799,2]
[337340210,1725616268231,-516.57,0.00019799,2]
[337340211,1725616268243,-1506.74,0.00019799,2]
[337340212,1725616268256,-500.0,0.00019799,2]
[337340213,1725616268266,-500.0,0.00019799,2]
[337340214,1725616268279,-500.0,0.00019799,2]
[337340215,1725616268298,-500.0,0.00019799,2]
[337340216,1725616268316,-500.0,0.00019799,2]
[337340217,1725616268336,-500.0,0.00019799,2]
[337340218,1725616268355,-500.0,0.00019799,2]
[337340219,1725616268374,-500.0,0.00019799,2]
[337340220,1725616268393,-500.0,0.00019799,2]
[337340221,1725616268411,-500.0,0.00019799,2]
[337340222,1725616268430,-500.0,0.00019799,2]
[337340223,1725616268448,-559.95062601,0.00019799,2]
[337340224,1725616268464,-500.0,0.00019799,2]
[337340225,1725616268474,-500.0,0.00019799,2]
[337340226,1725616268484,-501.76333195,0.00019799,2]
[337340227,1725616268493,-500.0,0.00019799,2]
[337340228,1725616268503,-500.0,0.00019799,2]
[337340229,1725616268513,-913.66,0.00019799,2]
[337340230,1725616268524,-500.0,0.00019799,2]
[337340231,1725616268542,-3704.34,0.00019799,2]
[337340232,1725616268552,-500.0,0.00019799,2]
[337340233,1725616268565,-500.0,0.00019799,2]
[337340234,1725616268575,-500.0,0.00019799,2]
[337340235,1725616268584,-552.21,0.00019799,2]
[337340236,1725616268594,-500.0,0.00019799,2]
[337340237,1725616268605,-500.0,0.00019799,2]
[337340238,1725616268614,-500.0,0.00019799,2]
[337340239,1725616268624,-2679.88,0.00019799,2]
[337340240,1725616268634,-500.0,0.00019799,2]
[337340241,1725616268644,-500.0,0.00019799,2]
[337340242,1725616268653,-500.0,0.00019799,2]
[337340243,1725616268662,-691.33,0.00019799,2]
[337340244,1725616268671,-884.21,0.00019799,2]
[337340245,1725616268681,-500.0,0.00019799,2]
[337340246,1725616268691,-500.0,0.00019799,2]
[337340247,1725616268700,-500.0,0.00019799,2]
[337340248,1725616268710,-500.0,0.00019799,2]
[337340249,1725616268719,-500.0,0.00019799,2]
[337340250,1725616268730,-2511.83,0.00019799,2]
[337340251,1725616268739,-500.0,0.00019799,2]
[337340252,1725616268748,-500.0,0.00019799,2]
[337340253,1725616268757,-500.0,0.00019799,2]
[337340254,1725616268767,-500.0,0.00019799,2]
[337340255,1725616268778,-500.0,0.00019799,2]
[337340256,1725616268787,-500.0,0.00019799,2]
[337340257,1725616268798,-503.86,0.00019799,2]
[337340258,1725616268807,-500.0,0.00019799,2]
[337340259,1725616268817,-500.0,0.00019799,2]
[337340260,1725616268826,-500.0,0.00019799,2]
[337340261,1725616268835,-514.71074449,0.00019799,2]
[337340262,1725616268845,-464.94776295,0.00019799,2]
[337340263,1725616268855,-500.0,0.00019799,2]
[337340264,1725616268864,-500.0,0.00019799,2]
[337340265,1725616268874,-1720.8,0.00019799,2]
[337340266,1725616268883,-505.7,0.00019799,2]
[337340267,1725616268893,-510.78390636,0.00019799,2]
[337340268,1725616268903,-500.0,0.00019799,2]
[337340269,1725616268912,-500.0,0.00019799,2]
[337340270,1725616268921,-500.0,0.00019799,2]
[337340271,1725616268931,-1293.19,0.000198,2]
[337340272,1725616268941,-599.0,0.000198,2]
[337340273,1725616268950,-571.02201787,0.00019806,2]
[337340274,1725616268960,-500.0,0.0001981,2]
[337340275,1725616268969,-500.0,0.0001981,2]
[337340276,1725616268978,-576.17920788,0.0001981,2]
[337340277,1725616268988,-151.0,0.0001981,2]
[337340278,1725616268998,-500.0,0.0001981,2]
[337340279,1725616269008,-151.0,0.0001981,2]
[337340280,1725616269017,-500.0,0.0001981,2]
[337340281,1725616269027,-500.0,0.0001981,2]
[337340282,1725616269037,-505.26356632,0.0001981,2]
[337340283,1725616269046,-500.0,0.0001981,2]
[337340284,1725616269056,-500.0,0.0001981,2]
[337340285,1725616269065,-500.0,0.0001981,2]
[337340286,1725616269075,-500.0,0.0001981,2]
[337340287,1725616269086,-500.0,0.0001981,2]
[337340288,1725616269096,-500.0,0.0001981,2]
[337340289,1725616269105,-501.35037179,0.0001981,2]
[337340290,1725616269114,-500.0,0.0001981,2]
[337340291,1725616269123,-510.32318062,0.0001981,2]
[337340292,1725616269135,-500.0,0.0001981,2]
[337340293,1725616269144,-521.25147061,0.0001981,2]
[337340294,1725616269154,-500.0,0.0001981,2]
[337340295,1725616269164,-500.0,0.0001981,2]
[337340296,1725616269174,-500.73821975,0.0001981,2]
[337340297,1725616269184,-500.0,0.0001981,2]
[337340298,1725616269194,-500.0,0.0001981,2]
[337340299,1725616269204,-500.0,0.0001981,2]
[337340300,1725616269214,-500.0,0.0001981,2]
[337340301,1725616269225,-500.0,0.0001981,2]
[337340302,1725616269236,-500.0,0.0001981,2]
[337340303,1725616269246,-500.0,0.0001981,2]
[337340304,1725616269256,-512.38,0.0001981,2]
[337340305,1725616269266,-500.0,0.0001981,2]
[337340306,1725616269276,-500.0,0.0001981,2]
[337340307,1725616269286,-477.15456477,0.0001981,2]
[337340308,1725616269296,-739.06,0.0001981,2]
[337340309,1725616269306,-500.0,0.0001981,2]
[337340310,1725616269316,-500.0,0.0001981,2]
[337340311,1725616269325,-500.0,0.0001981,2]
[337340312,1725616269335,-500.0,0.0001981,2]
[337340313,1725616269345,-500.0,0.0001981,2]
[337340314,1725616269354,-1104.23,0.0001981,2]
[337340315,1725616269364,-500.0,0.0001981,2]
[337340316,1725616269374,-500.0,0.0001981,2]
[337340317,1725616269384,-502.34,0.0001981,2]
[337340318,1725616269394,-500.0,0.0001981,2]
[337340319,1725616269403,-633.95,0.0001981,2]
[337340320,1725616269413,-224.27148364,0.0001981,2]
[337340321,1725616269422,-3096.33,0.0001981,2]
[337340322,1725616269432,-500.0,0.0001981,2]
[337340323,1725616269442,-506.13,0.0001981,2]
[337340324,1725616269451,-500.0,0.0001981,2]
[337340325,1725616269461,-500.0,0.0001981,2]
[337340326,1725616269471,-500.0,0.0001981,2]
[337340327,1725616269480,-500.0,0.0001981,2]
[337340328,1725616269490,-1253.19,0.0001981,2]
[337340329,1725616269499,-1783.42,0.0001981,2]
[337340330,1725616269509,-1454.15,0.0001981,2]
[337340331,1725616269520,-500.0,0.0001981,2]
[337340332,1725616269534,-775.32,0.0001981,2]
[337340333,1725616269543,-594.62477867,0.0001981,2]
[337340334,1725616269552,-2279.38,0.00019829,2]
[337340335,1725616269566,-2202.81,0.00019829,2]
[337340336,1725616269576,-500.0,0.00019829,2]
[337340337,1725616269585,-500.0,0.00019829,2]
[337340338,1725616269595,-500.0,0.00019829,2]
[337340339,1725616269605,-1363.74,0.00019829,2]
[337340340,1725616269615,-951.38,0.00019829,2]
[337340341,1725616269625,-2482.52,0.00019829,2]
[337340342,1725616269637,-1206.85,0.00019829,2]
[337340343,1725616269647,-1407.08,0.00019829,2]
[337340344,1725616269656,-1235.42,0.00019829,2]
[337340345,1725616269666,-1743.37,0.00019829,2]
[337340346,1725616269676,-500.0,0.00019829,2]
[337340347,1725616269685,-523.7,0.00019829,2]
[337340348,1725616269695,-2140.24,0.00019829,2]
[337340349,1725616269705,-500.0,0.0001983,2]
[337340350,1725616269714,-500.0,0.0001983,2]
[337340351,1725616269724,-1798.13,0.0001983,2]
[337340352,1725616269734,-551.66,0.0001983,2]
[337340353,1725616269744,-500.0,0.0001983,2]
[337340354,1725616269753,-500.0,0.0001983,2]
[337340355,1725616269762,-500.0,0.0001983,2]
[337340356,1725616269772,-500.0,0.0001983,2]
[337340357,1725616269792,-500.0,0.0001983,2]
[337340358,1725616269801,-500.0,0.0001983,2]
[337340359,1725616269811,-229.87168581,0.0001983,2]
[337340360,1725616269820,-547.51,0.0001983,2]
[337340361,1725616269830,-500.0,0.0001983,2]
[337340362,1725616269839,-500.0,0.0001983,2]
[337340363,1725616269849,-500.0,0.0001983,2]
[337340364,1725616269859,-500.0,0.0001983,2]
[337340365,1725616269869,-494.58732311,0.0001983,2]
[337340366,1725616269878,-500.0,0.0001983,2]
[337340367,1725616269888,-500.0,0.0001983,2]
[337340368,1725616269897,-500.0,0.0001983,2]
[337340369,1725616269907,-500.0,0.0001983,2]
[337340370,1725616269917,-500.0,0.0001983,2]
[337340371,1725616270071,-500.0,0.0001983,2]
[337340372,1725616270089,-500.0,0.0001983,2]
[337340373,1725616270099,-500.0,0.0001983,2]
[337340374,1725616270108,-500.0,0.0001983,2]
[337340375,1725616270117,-510.48893974,0.0001983,2]
[337340376,1725616270126,-500.0,0.0001983,2]
[337340377,1725616270136,-613.58,0.0001983,2]
[337340378,1725616270146,-500.0,0.0001983,2]
[337340379,1725616270155,-511.77137534,0.0001983,2]
[337340380,1725616270164,-771.43,0.0001983,2]
[337340381,1725616270173,-202.29003797,0.0001983,2]
[337340382,1725616270183,-500.0,0.0001983,2]
[337340383,1725616270192,-500.0,0.0001983,2]
[337340384,1725616270201,-1309.02,0.0001983,2]
[337340385,1725616270211,-500.0,0.0001983,2]
[337340386,1725616270220,-500.0,0.0001983,2]
[337340387,1725616270229,-500.0,0.0001983,2]
[337340388,1725616270239,-613.97850125,0.0001983,2]
[337340389,1725616270248,-1222.73,0.0001983,2]
[337340390,1725616270258,-500.0,0.0001983,2]
[337340391,1725616270267,-891.77,0.0001983,2]
[337340392,1725616270277,-2244.06,0.0001983,2]
[337340393,1725616270291,-501.56,0.0001983,2]
[337340394,1725616270303,-500.0,0.0001983,2]
[337340395,1725616270312,-500.0,0.0001983,2]
[337340396,1725616270321,-500.0,0.0001983,2]
[337340397,1725616270331,-994.75,0.0001983,2]
[337340398,1725616270340,-500.0,0.0001983,2]
[337340399,1725616270350,-500.0,0.0001983,2]
[337340400,1725616270359,-519.49823112,0.0001983,2]
[337340401,1725616270368,-500.0,0.0001983,2]
[337340402,1725616270377,-500.0,0.0001983,2]
[337340403,1725616270387,-500.0,0.0001983,2]
[337340404,1725616270396,-500.0,0.0001983,2]
[337340405,1725616270405,-996.42,0.0001983,2]
[337340406,1725616270415,-500.0,0.0001983,2]
[337340407,1725616270424,-500.0,0.0001983,2]
[337340408,1725616270433,-500.0,0.0001983,2]
[337340409,1725616270442,-500.0,0.0001983,2]
[337340410,1725616270452,-648.44484412,0.0001983,2]
[337340411,1725616270462,-500.0,0.0001983,2]
[337340412,1725616270471,-500.0,0.0001983,2]
[337340413,1725616270480,-248.73416736,0.0001983,2]
[337340414,1725616271382,-285.32805161,0.00019328,2]
[337340415,1725616271394,-214.67194839,0.00019328,2]
[337340416,1725616271403,-87.07777543,0.00019514,2]
[337340418,1725616369960,4059.8045107,0.0001837,2]
[337340422,1725616810050,500.0,0.00027,120]
[337340423,1725616863778,1889833.31706067,0.00025,60]
[337340424,1725616915091,195.749861,0.00018396,2]
[337340425,1725616917045,500.0,0.00027,120]
[337340426,1725616944426,644.28162509,0.00027,120]
[337340428,1725616957347,500.0,0.00027,120]
[337340429,1725616958697,500.0,0.00027,120]
[337340430,1725616968295,500.0,0.00027,120]
[337340431,1725616968524,500.0,0.00027,120]
[337340432,1725616975302,500.0,0.00027,120]
[337340433,1725616982935,500.0,0.00027,120]
[337340435,1725617061775,500.0,0.00027,120]
[337340436,1725617067139,594.624778,0.0001881,2]
[337340437,1725617071197,500.0,0.00027,120]
[337340438,1725617072072,110707.0,0.00027,120]
[337340439,1725617082038,500.0,0.00027,120]
[337340440,1725617158390,500.0,0.00027,120]
[337340441,1725617234690,500.0,0.00027,120]
[337340454,1725617432463,-3890.1547,0.00019178,2]
[337340456,1725617432474,-300.0,0.00019187,2]
[337340458,1725617432483,-6160.47602265,0.00019188,2]
[337340459,1725617432493,-168.70203402,0.00019188,2]
[337340460,1725617432502,-6160.47602262,0.0001919,2]
[337340461,1725617432511,-6160.47602262,0.00019193,2]
[337340462,1725617432520,-6160.47602262,0.00019195,2]
[337340463,1725617432529,-6160.47602262,0.00019197,2]
[337340464,1725617432539,-456.81761435,0.00019206,2]
[337340465,1725617432548,-500.0,0.00019273,2]
[337340466,1725617432557,-246.23,0.00019278,3]
[337340467,1725617432567,-738.73,0.00019278,3]
[337340468,1725617432577,-150.0,0.00019284,2]
[337340469,1725617432587,-500.0,0.00019288,2]
[337340470,1725617432597,-1823.08,0.00019288,2]
[337340471,1725617432606,-2423.9953695,0.00019288,3]
[337340510,1725617438599,-500.0,0.00019287,2]
[337340512,1725617438608,-500.0,0.00019287,2]
[337340514,1725617438618,-500.0,0.00019287,2]
[337340516,1725617438629,-500.0,0.00019287,2]
[337340518,1725617438639,-500.0,0.00019287,2]
[337340520,1725617438649,-500.0,0.00019287,2]
[337340522,1725617438658,-500.0,0.00019287,2]
[337340524,1725617438668,-500.0,0.00019287,2]
[337340526,1725617438678,-487.32953284,0.00019287,2]
[337340528,1725617438687,-110.94676036,0.00019287,2]
[337340536,1725617440634,-126.42687704,0.00019287,2]
[337340537,1725617440644,-500.0,0.00019287,2]
[337340538,1725617440653,-500.0,0.00019287,2]
[337340539,1725617440663,-23168.86010365,0.00019288,3]
[337340540,1725617440673,-57638.45006442,0.00019288,2]
[337340541,1725617440684,-5270.01570441,0.00019288,2]
[337340557,1725617443331,-2161.17786296,0.00019288,2]
[337340571,1725617446612,-1327.76017751,0.00019288,2]
[337340577,1725617960094,153.31,0.00019,10]
[337340578,1725618046725,24900.0,0.0001825,2]
[337340583,1725618358829,402.9365859,0.00027,120]
[337340584,1725618368127,410.1087154,0.00027,120]
[337340585,1725618376362,409.9728619,0.00027,120]
[337340586,1725618386742,410.3346385,0.00027,120]
[337340587,1725618393954,410.0411331,0.00027,120]
[337340656,1725618632930,-168.70203402,0.00019158,2]
[337340657,1725618632940,-411.13585287,0.00019159,2]
[337340658,1725618632949,-2593.436466,0.00019178,2]
[337340659,1725618632959,-173.1,0.00019228,3]
[337340660,1725618632968,-519.34,0.00019228,3]
[337340661,1725618632978,-300.0,0.00019237,2]
[337340662,1725618632987,-150.0,0.00019237,2]
[337340663,1725618632996,-5126.7481577,0.00019238,3]
[337340687,1725618640668,-500.0,0.00019237,2]
[337340688,1725618640678,-500.0,0.00019237,2]
[337340689,1725618640688,-504.92121682,0.00019237,2]
[337340690,1725618640698,-500.0,0.00019237,2]
[337340691,1725618640708,-387.4810592,0.00019237,2]
[337340692,1725618640717,-500.0,0.00019238,2]
[337340693,1725618640726,-19254.1096307,0.00019238,3]
[337340694,1725618640735,-24325.05063162,0.00019238,5]
[337340695,1725618640745,-35335.74762973,0.00019238,2]
[337340696,1725618640756,-98856.13748169,0.00019238,2]
[337340697,1725618640769,-9863.8297982,0.00019238,2]
[337340698,1725618640781,-11322.00747,0.00019238,2]
[337340808,1725618643505,-280416.54051605,0.00019238,2]
[337340817,1725618665031,178.06,0.00019,7]
[337340825,1725619208249,467.4989066,0.00018613,2]
[337340842,1725619616663,8077.51344073,0.0001,2]
[337340844,1725619703333,154.64353125,0.00019,2]
[337340846,1725619765541,594.624779,0.0001881,2]
[337340857,1725619838739,-300.0,0.00019052,2]
[337340858,1725619838750,-164.94498241,0.00019053,2]
[337340859,1725619838761,-500.0,0.00019053,2]
[337340860,1725619838771,-500.0,0.00019053,2]
[337340861,1725619838780,-484.93539508,0.00019053,2]
[337340862,1725619838792,-15.06460492,0.00019053,2]
[337340863,1725619838802,-500.0,0.00019053,2]
[337340864,1725619838812,-500.0,0.00019053,2]
[337340865,1725619838822,-500.0,0.00019053,2]
[337340866,1725619838832,-500.0,0.00019053,2]
[337340867,1725619838842,-500.0,0.00019053,2]
[337340868,1725619838852,-500.0,0.00019053,2]
[337340869,1725619838862,-500.0,0.00019053,2]
[337340870,1725619838872,-500.0,0.00019053,2]
[337340871,1725619838882,-500.0,0.00019053,2]
[337340872,1725619838891,-500.0,0.00019053,2]
[337340873,1725619838902,-500.0,0.00019053,2]
[337340874,1725619838911,-500.0,0.00019053,2]
[337340875,1725619838921,-500.0,0.00019053,2]
[337340876,1725619838930,-500.0,0.00019053,2]
[337340877,1725619838940,-500.0,0.00019053,2]
[337340878,1725619838949,-500.0,0.00019053,2]
[337340879,1725619838959,-500.0,0.00019053,2]
[337340880,1725619838969,-500.0,0.00019053,2]
[337340881,1725619838979,-500.0,0.00019053,2]
[337340882,1725619838989,-500.0,0.00019053,2]
[337340883,1725619838998,-500.0,0.00019053,2]
[337340884,1725619839008,-500.0,0.00019053,2]
[337340885,1725619839018,-500.0,0.00019053,2]
[337340886,1725619839028,-500.0,0.00019053,2]
[337340887,1725619839038,-500.0,0.00019053,2]
[337340888,1725619839047,-500.0,0.00019053,2]
[337340889,1725619839057,-436.36273656,0.00019053,2]
[337340890,1725619839066,-500.0,0.00019053,2]
[337340891,1725619839076,-500.0,0.00019053,2]
[337340892,1725619839085,-500.0,0.00019053,2]
[337340893,1725619839095,-500.0,0.00019053,2]
[337340894,1725619839104,-500.0,0.00019053,2]
[337340895,1725619839114,-500.0,0.00019053,2]
[337340896,1725619839123,-500.0,0.00019053,2]
[337340897,1725619839132,-500.0,0.00019053,2]
[337340898,1725619839141,-500.0,0.00019053,2]
[337340899,1725619839151,-500.0,0.00019053,2]
[337340900,1725619839161,-500.0,0.00019053,2]
[337340901,1725619839181,-500.0,0.00019053,2]
[337340902,1725619839190,-500.0,0.00019053,2]
[337340903,1725619839199,-500.0,0.00019053,2]
[337340904,1725619839208,-500.0,0.00019053,2]
[337340905,1725619839217,-500.0,0.00019053,2]
[337340906,1725619839227,-500.0,0.00019053,2]
[337340907,1725619839235,-500.0,0.00019053,2]
[337340908,1725619839246,-500.0,0.00019053,2]
[337340909,1725619839256,-500.0,0.00019053,2]
[337340910,1725619839267,-500.0,0.00019053,2]
[337340911,1725619839277,-500.0,0.00019053,2]
[337340912,1725619839287,-500.0,0.00019053,2]
[337340913,1725619839296,-500.0,0.00019053,2]
[337340914,1725619839307,-500.0,0.00019053,2]
[337340915,1725619839316,-500.0,0.00019053,2]
[337340916,1725619839326,-500.0,0.00019053,2]
[337340917,1725619839337,-450.0,0.00019053,2]
[337340918,1725619839347,-500.0,0.00019053,2]
[337340919,1725619839357,-500.0,0.00019053,2]
[337340920,1725619839367,-500.0,0.00019053,2]
[337340921,1725619839377,-500.0,0.00019053,2]
[337340922,1725619839386,-500.0,0.00019053,2]
[337340923,1725619839396,-500.0,0.00019053,2]
[337340924,1725619839406,-500.0,0.00019053,2]
[337340925,1725619839419,-500.0,0.00019053,2]
[337340926,1725619839428,-300.0,0.00019053,2]
[337340927,1725619839437,-500.0,0.00019053,2]
[337340928,1725619839448,-500.0,0.00019053,2]
[337340929,1725619839457,-500.0,0.00019053,2]
[337340930,1725619839467,-500.0,0.00019053,2]
[337340931,1725619839477,-392.20330021,0.00019053,2]
[337340932,1725619839486,-500.0,0.00019053,2]
[337340933,1725619839495,-500.0,0.00019053,2]